[Event "Titled Tuesday Blitz January 31 Early 2023"]
[White "Avila Pavas, Santiago"]
[Black "Mosadeghpour, Masoud"]
[WhiteFideId "4437128"]
[BlackFideId "12519278"]
[WhiteElo "2522"]
[BlackElo "2472"]
[Result "0-1"]
[Round "09"]
[TimeControl "180+2"]
[Date "2023.01.31"]
[WhiteClock "0:00:06"]
[BlackClock "0:00:03"]

1. d4 {[%clk 0:03:00]}  Nf6 {[%clk 0:02:55]} 2. Nf3 {[%clk 0:03:00]}  e6 {[%clk 0:02:55]} 3. Bf4 {[%clk 0:03:00]}  b6 {[%clk 0:02:54]} 4. e3 {[%clk 0:03:01]}  Bb7 {[%clk 0:02:55]} 5. Nbd2 {[%clk 0:03:01]}  Bd6 {[%clk 0:02:55]} 6. Bg3 {[%clk 0:03:01]}  Nc6 {[%clk 0:02:54]} 7. Bd3 {[%clk 0:03:01]}  O-O {[%clk 0:02:54]} 8. c3 {[%clk 0:03:00]}  Qe7 {[%clk 0:02:54]} 9. e4 {[%clk 0:02:59]}  e5 {[%clk 0:02:54]} 10. d5 {[%clk 0:02:58]}  Nb8 {[%clk 0:02:52]} 11. Qe2 {[%clk 0:02:55]}  c6 {[%clk 0:02:48]} 12. Nc4 {[%clk 0:02:40]}  Re8 {[%clk 0:02:40]} 13. Nfxe5 {[%clk 0:02:29]}  cxd5 {[%clk 0:02:36]} 14. Nxd6 {[%clk 0:02:27]}  Qxd6 {[%clk 0:02:36]} 15. Ng4 {[%clk 0:02:23]}  Qe6 {[%clk 0:02:31]} 16. Nxf6+ {[%clk 0:02:22]}  Qxf6 {[%clk 0:02:29]} 17. e5 {[%clk 0:02:23]}  Qh6 {[%clk 0:02:23]} 18. O-O {[%clk 0:02:12]}  d6 {[%clk 0:02:23]} 19. f4 {[%clk 0:01:48]}  Nd7 {[%clk 0:02:14]} 20. Rae1 {[%clk 0:01:47]}  Nc5 {[%clk 0:02:10]} 21. Bb1 {[%clk 0:01:47]}  Ne4 {[%clk 0:02:07]} 22. Qg4 {[%clk 0:01:34]}  dxe5 {[%clk 0:01:57]} 23. fxe5 {[%clk 0:01:34]}  Re6 {[%clk 0:01:57]} 24. Qf5 {[%clk 0:01:13]}  Qg6 {[%clk 0:01:51]} 25. Qxg6 {[%clk 0:01:10]}  Rxg6 {[%clk 0:01:51]} 26. Bf4 {[%clk 0:01:07]}  Re8 {[%clk 0:01:49]} 27. Rd1 {[%clk 0:01:07]}  Bc6 {[%clk 0:01:47]} 28. Rd4 {[%clk 0:01:07]}  f6 {[%clk 0:01:38]} 29. exf6 {[%clk 0:01:07]}  Rxf6 {[%clk 0:01:38]} 30. Bxe4 {[%clk 0:00:47]}  dxe4 {[%clk 0:01:27]} 31. Be3 {[%clk 0:00:48]}  Rxf1+ {[%clk 0:01:24]} 32. Kxf1 {[%clk 0:00:49]}  Kf7 {[%clk 0:01:24]} 33. Rd6 {[%clk 0:00:47]}  Bb5+ {[%clk 0:01:21]} 34. Kf2 {[%clk 0:00:46]}  Re5 {[%clk 0:01:17]} 35. Bf4 {[%clk 0:00:34]}  Rf5 {[%clk 0:01:16]} 36. Ke3 {[%clk 0:00:35]}  Ke7 {[%clk 0:01:15]} 37. Rd4 {[%clk 0:00:33]}  Bd3 {[%clk 0:01:14]} 38. g4 {[%clk 0:00:26]}  Rf7 {[%clk 0:01:12]} 39. c4 {[%clk 0:00:23]}  Ke6 {[%clk 0:01:04]} 40. b3 {[%clk 0:00:22]}  g5 {[%clk 0:01:01]} 41. Bxg5 {[%clk 0:00:20]}  Rf3+ {[%clk 0:01:02]} 42. Kd2 {[%clk 0:00:21]}  Rf2+ {[%clk 0:01:02]} 43. Ke3 {[%clk 0:00:20]}  Rf3+ {[%clk 0:01:02]} 44. Kd2 {[%clk 0:00:20]}  Rf2+ {[%clk 0:01:03]} 45. Ke3 {[%clk 0:00:20]}  Rxh2 {[%clk 0:00:59]} 46. Rd8 {[%clk 0:00:19]}  Rxa2 {[%clk 0:00:57]} 47. Kd4 {[%clk 0:00:19]}  Rg2 {[%clk 0:00:56]} 48. Re8+ {[%clk 0:00:19]}  Kd6 {[%clk 0:00:53]} 49. Bf4+ {[%clk 0:00:18]}  Kd7 {[%clk 0:00:53]} 50. Ra8 {[%clk 0:00:19]}  Rxg4 {[%clk 0:00:51]} 51. Rxa7+ {[%clk 0:00:19]}  Kc8 {[%clk 0:00:49]} 52. Be3 {[%clk 0:00:19]}  Rh4 {[%clk 0:00:37]} 53. Kc3 {[%clk 0:00:18]}  Rh3 {[%clk 0:00:34]} 54. Bxb6 {[%clk 0:00:17]}  Be2+ {[%clk 0:00:35]} 55. Kc2 {[%clk 0:00:13]}  Bd3+ {[%clk 0:00:33]} 56. Kc3 {[%clk 0:00:13]}  Be2+ {[%clk 0:00:29]} 57. Kc2 {[%clk 0:00:14]}  h5 {[%clk 0:00:27]} 58. Rc7+ {[%clk 0:00:11]}  Kb8 {[%clk 0:00:27]} 59. Re7 {[%clk 0:00:12]}  Bd3+ {[%clk 0:00:24]} 60. Kd2 {[%clk 0:00:13]}  h4 {[%clk 0:00:20]} 61. c5 {[%clk 0:00:12]}  Rh2+ {[%clk 0:00:20]} 62. Kc3 {[%clk 0:00:12]}  Rc2+ {[%clk 0:00:21]} 63. Kd4 {[%clk 0:00:12]}  h3 {[%clk 0:00:21]} 64. Rh7 {[%clk 0:00:11]}  Bf1 {[%clk 0:00:19]} 65. b4 {[%clk 0:00:09]}  Rc4+ {[%clk 0:00:16]} 66. Kd5 {[%clk 0:00:10]}  Rxb4 {[%clk 0:00:14]} 67. Ba5 {[%clk 0:00:06]}  Ra4 {[%clk 0:00:13]} 68. Bb6 {[%clk 0:00:06]}  Rb4 {[%clk 0:00:12]} 69. Ba5 {[%clk 0:00:06]}  Rb3 {[%clk 0:00:12]} 70. Bb6 {[%clk 0:00:07]}  e3 {[%clk 0:00:10]} 71. Bc7+ {[%clk 0:00:06]}  Kc8 {[%clk 0:00:10]} 72. Bg3 {[%clk 0:00:05]}  e2 {[%clk 0:00:11]} 73. Be1 {[%clk 0:00:04]}  Bg2+ {[%clk 0:00:10]} 74. Kd6 {[%clk 0:00:04]}  Rd3+ {[%clk 0:00:11]} 75. Ke5 {[%clk 0:00:04]}  Rd5+ {[%clk 0:00:11]} 76. Ke6 {[%clk 0:00:05]}  Rxc5 {[%clk 0:00:12]} 77. Bf2 {[%clk 0:00:04]}  Rc7 {[%clk 0:00:12]} 78. Rh8+ {[%clk 0:00:03]}  Kb7 {[%clk 0:00:12]} 79. Bg3 {[%clk 0:00:03]}  Rc6+ {[%clk 0:00:12]} 80. Ke5 {[%clk 0:00:04]}  Rc3 {[%clk 0:00:13]} 81. Bf2 {[%clk 0:00:02]}  Rf3 {[%clk 0:00:12]} 82. Bh4 {[%clk 0:00:02]}  e1=Q+ {[%clk 0:00:10]} 83. Bxe1 {[%clk 0:00:02]}  Re3+ {[%clk 0:00:10]} 84. Kf4 {[%clk 0:00:02]}  Rxe1 {[%clk 0:00:11]} 85. Kg3 {[%clk 0:00:03]}  Kc6 {[%clk 0:00:11]} 86. Kh2 {[%clk 0:00:03]}  Kd5 {[%clk 0:00:11]} 87. Rf8 {[%clk 0:00:04]}  Re2 {[%clk 0:00:10]} 88. Rd8+ {[%clk 0:00:04]}  Kc6 {[%clk 0:00:09]} 89. Kg1 {[%clk 0:00:04]}  Bd5 {[%clk 0:00:08]} 90. Rh8 {[%clk 0:00:05]}  Be6 {[%clk 0:00:08]} 91. Rh6 {[%clk 0:00:05]}  Kd7 {[%clk 0:00:08]} 92. Kh1 {[%clk 0:00:06]}  Bd5+ {[%clk 0:00:07]} 93. Kg1 {[%clk 0:00:05]}  Be6 {[%clk 0:00:08]} 94. Kh1 {[%clk 0:00:05]}  Rd2 {[%clk 0:00:08]} 95. Kg1 {[%clk 0:00:05]}  Ke7 {[%clk 0:00:08]} 96. Kh1 {[%clk 0:00:06]}  Kf7 {[%clk 0:00:09]} 97. Kg1 {[%clk 0:00:06]}  Bf5 {[%clk 0:00:07]} 98. Kh1 {[%clk 0:00:07]}  Kg7 {[%clk 0:00:07]} 99. Rh4 {[%clk 0:00:07]}  Kg6 {[%clk 0:00:06]} 100. Rf4 {[%clk 0:00:07]}  Kg5 {[%clk 0:00:06]} 101. Rc4 {[%clk 0:00:07]}  Bg4 {[%clk 0:00:04]} 102. Rc3 {[%clk 0:00:05]}  Kh4 {[%clk 0:00:04]} 103. Kg1 {[%clk 0:00:04]}  Rg2+ {[%clk 0:00:03]} 104. Kh1 {[%clk 0:00:04]}  Rg3 {[%clk 0:00:03]} 105. Rc2 {[%clk 0:00:03]}  Bf3+ {[%clk 0:00:02]} 106. Kh2 {[%clk 0:00:04]}  Rg2+ {[%clk 0:00:03]} 107. Rxg2 {[%clk 0:00:04]}  hxg2 {[%clk 0:00:03]} 108. Kg1 {[%clk 0:00:05]}  Kg4 {[%clk 0:00:03]} 109. Kf2 {[%clk 0:00:05]}  Bd5 {[%clk 0:00:03]} 110. Kg1 {[%clk 0:00:06]}  Kf4 {[%clk 0:00:03]} 0-1


[Site "https://www.chess.com"]

[Event "Titled Tuesday Blitz January 31 Early 2023"]
[White "Postny, Evgeny"]
[Black "Bruzon Batista, Lazaro"]
[WhiteFideId "2804344"]
[BlackFideId "3503739"]
[WhiteElo "2549"]
[BlackElo "2611"]
[Result "1-0"]
[Round "09"]
[TimeControl "180+2"]
[Date "2023.01.31"]
[WhiteClock "0:00:11"]
[BlackClock "0:00:07"]

1. Nf3 {[%clk 0:01:38]}  Nf6 {[%clk 0:02:57]} 2. c4 {[%clk 0:01:39]}  e6 {[%clk 0:02:57]} 3. g3 {[%clk 0:01:40]}  d5 {[%clk 0:02:55]} 4. Bg2 {[%clk 0:01:40]}  dxc4 {[%clk 0:02:55]} 5. Qa4+ {[%clk 0:01:39]}  c6 {[%clk 0:02:54]} 6. Qxc4 {[%clk 0:01:40]}  b5 {[%clk 0:02:54]} 7. Qc2 {[%clk 0:01:40]}  Bb7 {[%clk 0:02:54]} 8. O-O {[%clk 0:01:41]}  Nbd7 {[%clk 0:02:54]} 9. a4 {[%clk 0:01:38]}  Rc8 {[%clk 0:02:53]} 10. d3 {[%clk 0:01:35]}  Be7 {[%clk 0:02:47]} 11. Nc3 {[%clk 0:01:34]}  a6 {[%clk 0:02:46]} 12. Bf4 {[%clk 0:01:28]}  O-O {[%clk 0:02:43]} 13. Ne5 {[%clk 0:01:27]}  Nd5 {[%clk 0:02:34]} 14. Nxd5 {[%clk 0:01:23]}  cxd5 {[%clk 0:02:31]} 15. Qb3 {[%clk 0:01:23]}  Nc5 {[%clk 0:02:30]} 16. Qa2 {[%clk 0:01:09]}  Nxa4 {[%clk 0:02:27]} 17. Rfc1 {[%clk 0:01:09]}  Nc5 {[%clk 0:01:34]} 18. d4 {[%clk 0:00:59]}  Ne4 {[%clk 0:01:31]} 19. Nd3 {[%clk 0:00:59]}  Qb6 {[%clk 0:01:14]} 20. Be3 {[%clk 0:00:57]}  b4 {[%clk 0:01:08]} 21. Ne5 {[%clk 0:00:52]}  Qb5 {[%clk 0:01:05]} 22. Bxe4 {[%clk 0:00:42]}  dxe4 {[%clk 0:01:04]} 23. Rxc8 {[%clk 0:00:34]}  Rxc8 {[%clk 0:01:03]} 24. b3 {[%clk 0:00:34]}  h5 {[%clk 0:00:44]} 25. h4 {[%clk 0:00:34]}  f6 {[%clk 0:00:39]} 26. Ng6 {[%clk 0:00:30]}  Bd6 {[%clk 0:00:35]} 27. Bf4 {[%clk 0:00:29]}  Bxf4 {[%clk 0:00:34]} 28. Nxf4 {[%clk 0:00:30]}  e5 {[%clk 0:00:32]} 29. dxe5 {[%clk 0:00:26]}  fxe5 {[%clk 0:00:32]} 30. Nh3 {[%clk 0:00:23]}  e3 {[%clk 0:00:31]} 31. f3 {[%clk 0:00:22]}  Rd8 {[%clk 0:00:31]} 32. Re1 {[%clk 0:00:16]}  Rd2 {[%clk 0:00:29]} 33. Qb1 {[%clk 0:00:16]}  Rxe2 {[%clk 0:00:25]} 34. Rxe2 {[%clk 0:00:13]}  Qxe2 {[%clk 0:00:25]} 35. Qg6 {[%clk 0:00:14]}  Qd1+ {[%clk 0:00:18]} 36. Kh2 {[%clk 0:00:14]}  Qxf3 {[%clk 0:00:18]} 37. Qe8+ {[%clk 0:00:13]}  Qf8 {[%clk 0:00:18]} 38. Qxe5 {[%clk 0:00:12]}  Qf7 {[%clk 0:00:10]} 39. Qb8+ {[%clk 0:00:12]}  Qf8 {[%clk 0:00:09]} 40. Qxb7 {[%clk 0:00:12]}  Qe7 {[%clk 0:00:07]} 41. Qxe7 {[%clk 0:00:11]} 1-0


[Site "https://www.chess.com"]

[Event "Titled Tuesday Blitz January 31 Early 2023"]
[White "Corrales Jimenez, Fidel"]
[Black "Grandelius, Nils"]
[WhiteFideId "3506690"]
[BlackFideId "1710400"]
[WhiteElo "2489"]
[BlackElo "2664"]
[Result "0-1"]
[Round "09"]
[TimeControl "180+2"]
[Date "2023.01.31"]
[WhiteClock "0:00:01"]
[BlackClock "0:00:06"]

1. e4 {[%clk 0:03:00]}  c6 {[%clk 0:02:57]} 2. d4 {[%clk 0:02:59]}  d5 {[%clk 0:02:58]} 3. e5 {[%clk 0:02:59]}  c5 {[%clk 0:02:58]} 4. dxc5 {[%clk 0:03:00]}  e6 {[%clk 0:02:59]} 5. Nf3 {[%clk 0:02:59]}  Bxc5 {[%clk 0:02:57]} 6. a3 {[%clk 0:03:00]}  a6 {[%clk 0:02:56]} 7. Bd3 {[%clk 0:02:58]}  Ne7 {[%clk 0:02:54]} 8. O-O {[%clk 0:02:58]}  Ng6 {[%clk 0:02:35]} 9. b4 {[%clk 0:02:58]}  Ba7 {[%clk 0:02:35]} 10. c4 {[%clk 0:02:58]}  O-O {[%clk 0:02:34]} 11. cxd5 {[%clk 0:02:56]}  exd5 {[%clk 0:02:31]} 12. h3 {[%clk 0:02:55]}  Nc6 {[%clk 0:02:30]} 13. Bb2 {[%clk 0:02:54]}  Re8 {[%clk 0:02:20]} 14. Bxg6 {[%clk 0:02:51]}  hxg6 {[%clk 0:02:18]} 15. Re1 {[%clk 0:02:49]}  Bf5 {[%clk 0:02:14]} 16. Nbd2 {[%clk 0:02:42]}  Qb6 {[%clk 0:01:57]} 17. Qe2 {[%clk 0:02:19]}  d4 {[%clk 0:01:52]} 18. g4 {[%clk 0:02:10]}  d3 {[%clk 0:01:46]} 19. Qf1 {[%clk 0:02:09]}  Be6 {[%clk 0:01:46]} 20. Re3 {[%clk 0:01:56]}  Rad8 {[%clk 0:01:42]} 21. Ne1 {[%clk 0:01:19]}  Qb5 {[%clk 0:01:37]} 22. Re4 {[%clk 0:00:57]}  Bd5 {[%clk 0:01:27]} 23. a4 {[%clk 0:00:33]}  Qb6 {[%clk 0:01:27]} 24. Rf4 {[%clk 0:00:16]}  Nxb4 {[%clk 0:01:15]} 25. Bd4 {[%clk 0:00:16]}  Qxd4 {[%clk 0:01:15]} 26. Rxd4 {[%clk 0:00:17]}  Bxd4 {[%clk 0:01:16]} 27. Rb1 {[%clk 0:00:16]}  Bc3 {[%clk 0:01:14]} 28. Nef3 {[%clk 0:00:14]}  a5 {[%clk 0:00:40]} 29. Rc1 {[%clk 0:00:14]}  Bxe5 {[%clk 0:00:39]} 30. Nxe5 {[%clk 0:00:14]}  Rxe5 {[%clk 0:00:39]} 31. Qd1 {[%clk 0:00:12]}  Re2 {[%clk 0:00:38]} 32. Nf1 {[%clk 0:00:11]}  Bf3 {[%clk 0:00:32]} 33. Qb3 {[%clk 0:00:10]}  Bd5 {[%clk 0:00:19]} 34. Qc3 {[%clk 0:00:10]}  Bc6 {[%clk 0:00:19]} 35. Rd1 {[%clk 0:00:10]}  Bxa4 {[%clk 0:00:18]} 36. Rd2 {[%clk 0:00:10]}  Bc6 {[%clk 0:00:18]} 37. Qc5 {[%clk 0:00:08]}  Rd5 {[%clk 0:00:12]} 38. Qa7 {[%clk 0:00:08]}  Rde5 {[%clk 0:00:11]} 39. Qb8+ {[%clk 0:00:06]}  Kh7 {[%clk 0:00:11]} 40. Qd8 {[%clk 0:00:07]}  g5 {[%clk 0:00:11]} 41. Qd4 {[%clk 0:00:05]}  f6 {[%clk 0:00:11]} 42. Rxd3 {[%clk 0:00:06]}  Nxd3 {[%clk 0:00:11]} 43. Qxd3+ {[%clk 0:00:07]}  Kg8 {[%clk 0:00:11]} 44. Qd8+ {[%clk 0:00:07]}  Re8 {[%clk 0:00:09]} 45. Qd3 {[%clk 0:00:07]}  Re1 {[%clk 0:00:10]} 46. Qb3+ {[%clk 0:00:07]}  Kh8 {[%clk 0:00:10]} 47. Qc4 {[%clk 0:00:06]}  a4 {[%clk 0:00:09]} 48. h4 {[%clk 0:00:07]}  gxh4 {[%clk 0:00:09]} 49. g5 {[%clk 0:00:08]}  fxg5 {[%clk 0:00:10]} 50. Qc5 {[%clk 0:00:07]}  R1e5 {[%clk 0:00:10]} 51. Qc3 {[%clk 0:00:06]}  Re1 {[%clk 0:00:08]} 52. Qc5 {[%clk 0:00:06]}  R8e5 {[%clk 0:00:09]} 53. Qf8+ {[%clk 0:00:05]}  Kh7 {[%clk 0:00:09]} 54. Qf7 {[%clk 0:00:05]}  Bb5 {[%clk 0:00:07]} 55. Kg2 {[%clk 0:00:05]}  Bxf1+ {[%clk 0:00:06]} 56. Kf3 {[%clk 0:00:06]}  Be2+ {[%clk 0:00:05]} 57. Kg2 {[%clk 0:00:05]}  Bg4 {[%clk 0:00:05]} 58. Qc4 {[%clk 0:00:04]}  R1e4 {[%clk 0:00:03]} 59. Qc2 {[%clk 0:00:03]}  Bf5 {[%clk 0:00:04]} 60. Qc3 {[%clk 0:00:03]}  Bg6 {[%clk 0:00:03]} 61. Kh2 {[%clk 0:00:02]}  Re6 {[%clk 0:00:03]} 62. Qf3 {[%clk 0:00:02]}  b5 {[%clk 0:00:03]} 63. Qc3 {[%clk 0:00:02]}  Kh6 {[%clk 0:00:04]} 64. Qc8 {[%clk 0:00:02]}  Kh7 {[%clk 0:00:05]} 65. Qc1 {[%clk 0:00:01]}  b4 {[%clk 0:00:05]} 66. f3 {[%clk 0:00:02]}  Re2+ {[%clk 0:00:05]} 67. Kh3 {[%clk 0:00:01]}  Bf5# {[%clk 0:00:06]} 0-1


[Site "https://www.chess.com"]

[Event "Titled Tuesday Blitz January 31 Early 2023"]
[White "Baskakov, Egor"]
[Black "Nazari, Arad"]
[WhiteFideId "24197866"]
[BlackFideId "12577324"]
[WhiteElo "2215"]
[BlackElo "2367"]
[Result "1-0"]
[Round "09"]
[TimeControl "180+2"]
[Date "2023.01.31"]
[WhiteClock "0:02:32"]
[BlackClock "0:00:32"]

1. e4 {[%clk 0:03:00]}  c5 {[%clk 0:02:59]} 2. Nf3 {[%clk 0:02:59]}  d6 {[%clk 0:02:59]} 3. d4 {[%clk 0:02:59]}  cxd4 {[%clk 0:03:00]} 4. Nxd4 {[%clk 0:02:59]}  Nf6 {[%clk 0:03:01]} 5. Nc3 {[%clk 0:02:58]}  a6 {[%clk 0:03:02]} 6. a4 {[%clk 0:02:59]}  g6 {[%clk 0:03:00]} 7. g3 {[%clk 0:02:59]}  Bg7 {[%clk 0:03:01]} 8. Bg2 {[%clk 0:03:00]}  O-O {[%clk 0:03:01]} 9. h3 {[%clk 0:02:59]}  Nc6 {[%clk 0:03:00]} 10. Nde2 {[%clk 0:03:00]}  Bd7 {[%clk 0:02:53]} 11. Nd5 {[%clk 0:02:58]}  Rc8 {[%clk 0:02:48]} 12. Be3 {[%clk 0:02:56]}  Nxd5 {[%clk 0:02:46]} 13. exd5 {[%clk 0:02:57]}  Ne5 {[%clk 0:02:47]} 14. Ra2 {[%clk 0:02:57]}  Nc4 {[%clk 0:02:36]} 15. Bd4 {[%clk 0:02:50]}  Qa5+ {[%clk 0:02:34]} 16. c3 {[%clk 0:02:50]}  Bxd4 {[%clk 0:02:17]} 17. Qxd4 {[%clk 0:02:51]}  b5 {[%clk 0:02:17]} 18. b3 {[%clk 0:02:45]}  b4 {[%clk 0:01:25]} 19. O-O {[%clk 0:02:35]}  Ne5 {[%clk 0:00:39]} 20. cxb4 {[%clk 0:02:32]}  Qc7 {[%clk 0:00:32]} 21. f4 {[%clk 0:02:32]} 1-0


[Site "https://www.chess.com"]

[Event "Titled Tuesday Blitz January 31 Early 2023"]
[White "Csonka, Balazs"]
[Black "Pakleza, Zbigniew"]
[WhiteFideId "742910"]
[BlackFideId "1119290"]
[WhiteElo "2496"]
[BlackElo "2494"]
[Result "0-1"]
[Round "09"]
[TimeControl "180+2"]
[Date "2023.01.31"]
[WhiteClock "0:00:02"]
[BlackClock "0:00:10"]

1. c4 {[%clk 0:03:00]}  c6 {[%clk 0:02:59]} 2. d4 {[%clk 0:02:59]}  d5 {[%clk 0:03:00]} 3. Nc3 {[%clk 0:02:56]}  Nf6 {[%clk 0:03:00]} 4. cxd5 {[%clk 0:02:55]}  cxd5 {[%clk 0:03:00]} 5. Bf4 {[%clk 0:02:55]}  Nc6 {[%clk 0:03:01]} 6. Nf3 {[%clk 0:02:55]}  Qb6 {[%clk 0:03:00]} 7. Na4 {[%clk 0:02:06]}  Qa5+ {[%clk 0:03:00]} 8. Bd2 {[%clk 0:02:06]}  Qc7 {[%clk 0:03:00]} 9. Rc1 {[%clk 0:02:03]}  e6 {[%clk 0:03:01]} 10. e3 {[%clk 0:02:01]}  Bd6 {[%clk 0:03:01]} 11. Bd3 {[%clk 0:01:53]}  O-O {[%clk 0:03:01]} 12. O-O {[%clk 0:01:53]}  Ne4 {[%clk 0:03:01]} 13. b4 {[%clk 0:01:41]}  Qe7 {[%clk 0:02:57]} 14. b5 {[%clk 0:01:38]}  Nb8 {[%clk 0:02:49]} 15. Qc2 {[%clk 0:00:59]}  Bd7 {[%clk 0:02:17]} 16. Ne5 {[%clk 0:00:45]}  f5 {[%clk 0:02:17]} 17. Bxe4 {[%clk 0:00:40]}  fxe4 {[%clk 0:02:16]} 18. Qb3 {[%clk 0:00:27]}  Be8 {[%clk 0:02:07]} 19. Nc5 {[%clk 0:00:23]}  b6 {[%clk 0:01:51]} 20. Na6 {[%clk 0:00:20]}  Nd7 {[%clk 0:01:49]} 21. Nxd7 {[%clk 0:00:16]}  Bxd7 {[%clk 0:01:47]} 22. a4 {[%clk 0:00:10]}  Rf5 {[%clk 0:01:39]} 23. Bb4 {[%clk 0:00:07]}  Bxh2+ {[%clk 0:01:39]} 24. Kxh2 {[%clk 0:00:08]}  Qh4+ {[%clk 0:01:39]} 25. Kg1 {[%clk 0:00:08]}  Rh5 {[%clk 0:01:26]} 26. f4 {[%clk 0:00:08]}  exf3 {[%clk 0:01:24]} 27. Rxf3 {[%clk 0:00:04]}  Qh1+ {[%clk 0:01:23]} 28. Kf2 {[%clk 0:00:05]}  Qxc1 {[%clk 0:01:24]} 29. Ba3 {[%clk 0:00:03]}  Qd2+ {[%clk 0:01:05]} 30. Kg1 {[%clk 0:00:03]}  Qe1+ {[%clk 0:00:43]} 31. Rf1 {[%clk 0:00:03]}  Rh1+ {[%clk 0:00:44]} 32. Kxh1 {[%clk 0:00:03]}  Qxf1+ {[%clk 0:00:45]} 33. Kh2 {[%clk 0:00:04]}  Qc4 {[%clk 0:00:35]} 34. Qb2 {[%clk 0:00:03]}  Rc8 {[%clk 0:00:31]} 35. Qf2 {[%clk 0:00:02]}  Qxa4 {[%clk 0:00:27]} 36. Bd6 {[%clk 0:00:03]}  Qxb5 {[%clk 0:00:23]} 37. Qg3 {[%clk 0:00:02]}  Be8 {[%clk 0:00:16]} 38. Be5 {[%clk 0:00:02]}  Bg6 {[%clk 0:00:16]} 39. Nc7 {[%clk 0:00:02]}  Qd7 {[%clk 0:00:15]} 40. Qf4 {[%clk 0:00:02]}  Qf7 {[%clk 0:00:15]} 41. Qg3 {[%clk 0:00:02]}  a5 {[%clk 0:00:15]} 42. Bd6 {[%clk 0:00:02]}  Qd7 {[%clk 0:00:13]} 43. Qe5 {[%clk 0:00:03]}  Bf7 {[%clk 0:00:11]} 44. Qg3 {[%clk 0:00:02]}  a4 {[%clk 0:00:11]} 45. Qe5 {[%clk 0:00:02]}  a3 {[%clk 0:00:10]} 0-1


[Site "https://www.chess.com"]

[Event "Titled Tuesday Blitz January 31 Early 2023"]
[White "Tactrics"]
[Black "Sarana, Alexey"]
[BlackFideId "24133795"]
[WhiteElo "2800"]
[BlackElo "2685"]
[Result "0-1"]
[Round "09"]
[TimeControl "180+2"]
[Date "2023.01.31"]
[WhiteClock "0:00:06"]
[BlackClock "0:00:53"]

1. e4 {[%clk 0:03:00]}  c5 {[%clk 0:02:55]} 2. Nf3 {[%clk 0:03:01]}  d6 {[%clk 0:02:56]} 3. Bb5+ {[%clk 0:02:58]}  Bd7 {[%clk 0:02:55]} 4. Bxd7+ {[%clk 0:02:59]}  Nxd7 {[%clk 0:02:56]} 5. d4 {[%clk 0:02:57]}  cxd4 {[%clk 0:02:57]} 6. Qxd4 {[%clk 0:02:57]}  Rc8 {[%clk 0:02:51]} 7. c4 {[%clk 0:02:54]}  b5 {[%clk 0:02:47]} 8. Nbd2 {[%clk 0:02:45]}  e5 {[%clk 0:02:39]} 9. Qd3 {[%clk 0:02:38]}  Nc5 {[%clk 0:02:38]} 10. Qe2 {[%clk 0:02:36]}  b4 {[%clk 0:02:31]} 11. Nb3 {[%clk 0:02:31]}  Ne6 {[%clk 0:02:22]} 12. O-O {[%clk 0:02:26]}  Nf6 {[%clk 0:02:19]} 13. Bg5 {[%clk 0:02:19]}  Nxg5 {[%clk 0:02:18]} 14. Nxg5 {[%clk 0:02:19]}  Be7 {[%clk 0:02:17]} 15. Rfd1 {[%clk 0:02:17]}  Qb6 {[%clk 0:02:16]} 16. Nf3 {[%clk 0:02:15]}  O-O {[%clk 0:02:15]} 17. Nbd2 {[%clk 0:02:12]}  Nd7 {[%clk 0:02:03]} 18. Nf1 {[%clk 0:02:05]}  Nc5 {[%clk 0:02:03]} 19. Ne3 {[%clk 0:02:06]}  Qb7 {[%clk 0:02:04]} 20. Nd5 {[%clk 0:02:05]}  Bd8 {[%clk 0:02:02]} 21. Ne1 {[%clk 0:02:01]}  Ne6 {[%clk 0:01:58]} 22. b3 {[%clk 0:01:56]}  a5 {[%clk 0:01:58]} 23. Nc2 {[%clk 0:01:53]}  Bb6 {[%clk 0:01:58]} 24. Nxb6 {[%clk 0:01:48]}  Qxb6 {[%clk 0:01:59]} 25. Ne3 {[%clk 0:01:44]}  g6 {[%clk 0:01:47]} 26. Nd5 {[%clk 0:01:41]}  Qa7 {[%clk 0:01:48]} 27. Qe3 {[%clk 0:01:36]}  Rc5 {[%clk 0:01:34]} 28. Nf6+ {[%clk 0:01:24]}  Kg7 {[%clk 0:01:34]} 29. Ng4 {[%clk 0:01:25]}  Qe7 {[%clk 0:01:23]} 30. Rxd6 {[%clk 0:01:08]}  h5 {[%clk 0:01:22]} 31. Qh6+ {[%clk 0:00:58]}  Kg8 {[%clk 0:01:22]} 32. Rd7 {[%clk 0:00:56]}  Qh4 {[%clk 0:01:18]} 33. Ne3 {[%clk 0:00:51]}  Qxe4 {[%clk 0:01:01]} 34. Nd5 {[%clk 0:00:49]}  Rxd5 {[%clk 0:01:02]} 35. cxd5 {[%clk 0:00:39]}  Nf4 {[%clk 0:01:02]} 36. Qg5 {[%clk 0:00:12]}  f6 {[%clk 0:00:55]} 37. Qh6 {[%clk 0:00:06]}  Qxg2# {[%clk 0:00:53]} 0-1


[Site "https://www.chess.com"]

[Event "Titled Tuesday Blitz January 31 Early 2023"]
[White "Md, Imran"]
[Black "Makhnev, Denis"]
[WhiteFideId "25748580"]
[BlackFideId "13707647"]
[WhiteElo "2284"]
[BlackElo "2483"]
[Result "0-1"]
[Round "09"]
[TimeControl "180+2"]
[Date "2023.01.31"]
[WhiteClock "0:00:07"]
[BlackClock "0:00:09"]

1. d4 {[%clk 0:02:58]}  Nf6 {[%clk 0:02:59]} 2. c4 {[%clk 0:02:53]}  e6 {[%clk 0:03:00]} 3. Nf3 {[%clk 0:02:51]}  b6 {[%clk 0:03:00]} 4. a3 {[%clk 0:02:50]}  Ba6 {[%clk 0:02:58]} 5. e3 {[%clk 0:02:47]}  c5 {[%clk 0:02:57]} 6. Nc3 {[%clk 0:02:19]}  cxd4 {[%clk 0:02:53]} 7. Nxd4 {[%clk 0:02:13]}  Bb7 {[%clk 0:02:52]} 8. Nf3 {[%clk 0:02:09]}  Be7 {[%clk 0:02:50]} 9. Be2 {[%clk 0:02:08]}  d6 {[%clk 0:02:50]} 10. O-O {[%clk 0:02:09]}  Nbd7 {[%clk 0:02:50]} 11. b4 {[%clk 0:02:01]}  O-O {[%clk 0:02:48]} 12. Bb2 {[%clk 0:01:58]}  a6 {[%clk 0:02:48]} 13. Nd2 {[%clk 0:01:53]}  Rc8 {[%clk 0:02:35]} 14. Qb3 {[%clk 0:01:43]}  Rc7 {[%clk 0:02:30]} 15. Rac1 {[%clk 0:01:41]}  Qa8 {[%clk 0:02:29]} 16. f3 {[%clk 0:01:39]}  Rfc8 {[%clk 0:02:29]} 17. e4 {[%clk 0:01:36]}  g5 {[%clk 0:02:29]} 18. Rfd1 {[%clk 0:01:33]}  Ne5 {[%clk 0:02:29]} 19. Na4 {[%clk 0:01:28]}  Nfd7 {[%clk 0:02:26]} 20. Qe3 {[%clk 0:01:26]}  Rc6 {[%clk 0:02:03]} 21. g3 {[%clk 0:01:18]}  Ng6 {[%clk 0:01:56]} 22. Bd4 {[%clk 0:01:11]}  b5 {[%clk 0:01:55]} 23. Nb2 {[%clk 0:01:10]}  Bd8 {[%clk 0:01:13]} 24. Nb3 {[%clk 0:01:06]}  e5 {[%clk 0:01:11]} 25. Bc3 {[%clk 0:01:03]}  Bb6 {[%clk 0:01:11]} 26. c5 {[%clk 0:00:50]}  dxc5 {[%clk 0:01:12]} 27. Rxd7 {[%clk 0:00:48]}  cxb4 {[%clk 0:01:11]} 28. Qxb6 {[%clk 0:00:47]}  Rxb6 {[%clk 0:01:10]} 29. axb4 {[%clk 0:00:45]}  Rbc6 {[%clk 0:01:05]} 30. Nc5 {[%clk 0:00:45]}  Rxc5 {[%clk 0:00:57]} 31. bxc5 {[%clk 0:00:46]}  Rxc5 {[%clk 0:00:58]} 32. Nd3 {[%clk 0:00:42]}  Rc8 {[%clk 0:00:49]} 33. Bd1 {[%clk 0:00:37]}  Bc6 {[%clk 0:00:38]} 34. Rd6 {[%clk 0:00:34]}  Be8 {[%clk 0:00:18]} 35. Bb3 {[%clk 0:00:29]}  a5 {[%clk 0:00:17]} 36. Bd2 {[%clk 0:00:20]}  Rxc1+ {[%clk 0:00:17]} 37. Bxc1 {[%clk 0:00:19]}  b4 {[%clk 0:00:18]} 38. Bd5 {[%clk 0:00:17]}  Qb8 {[%clk 0:00:15]} 39. Ra6 {[%clk 0:00:12]}  Qb5 {[%clk 0:00:15]} 40. Ra8 {[%clk 0:00:11]}  Qxd3 {[%clk 0:00:16]} 41. Rxe8+ {[%clk 0:00:11]}  Kg7 {[%clk 0:00:16]} 42. Bxg5 {[%clk 0:00:12]}  b3 {[%clk 0:00:15]} 43. Rb8 {[%clk 0:00:11]}  Qd1+ {[%clk 0:00:14]} 44. Kg2 {[%clk 0:00:11]}  Qc2+ {[%clk 0:00:13]} 45. Kh3 {[%clk 0:00:10]}  b2 {[%clk 0:00:14]} 46. Ba2 {[%clk 0:00:10]}  h6 {[%clk 0:00:09]} 47. Bd8 {[%clk 0:00:08]}  Qe2 {[%clk 0:00:08]} 48. Rb7 {[%clk 0:00:08]}  Qxf3 {[%clk 0:00:08]} 49. Rxb2 {[%clk 0:00:07]}  Nf4+ {[%clk 0:00:08]} 50. Kh4 {[%clk 0:00:07]}  Qh5# {[%clk 0:00:09]} 0-1


[Site "https://www.chess.com"]